fUSD/lending_fUSD_20250405
["ID","MTS","AMOUNT","RATE_DAILY","PERIOD"]
[357197459,1743885070711,-500.0,0.0005,120]
[357197460,1743885070720,-169.0,0.0005,120]
[357197461,1743885070729,-156.31777596,0.0005,120]
[357197462,1743885070739,-225.95477523,0.0005,30]
[357197463,1743885070748,-626.22562855,0.0005,2]
[357197464,1743885070757,-900.0,0.0005,51]
[357197465,1743885070766,-272.34387822,0.0005,120]
[357197466,1743885070775,-1210.53450367,0.0005,120]
[357197467,1743885070785,-54250.0,0.0005,120]
[357197468,1743885070794,-1000.0,0.0005,20]
[357197469,1743885070804,-415.0,0.0005,90]
[357197470,1743885070814,-1000000.0,0.0005,120]
[357197471,1743885070823,-563000.0,0.0005,120]
[357197472,1743885070833,-231.55314752,0.0005,60]
[357197473,1743885070842,-151.62,0.0005,120]
[357197474,1743885070852,-500.0,0.0005,10]
[357197475,1743885070861,-1000.0,0.0005,20]
[357197476,1743885070870,-1663.191,0.0005,30]
[357197477,1743885070879,-50000.0,0.0005,15]
[357197478,1743885070889,-50000.0,0.0005,14]
[357197479,1743885070899,-8102.0814549,0.0005,15]
[357197480,1743885070909,-706.0,0.0005,120]
[357197481,1743885070918,-2764.37,0.0005,120]
[357197482,1743885070927,-213.0,0.0005,120]
[357197483,1743885070937,-699.99999901,0.0005,120]
[357197484,1743885070946,-1859.49039334,0.0005,120]
[357197485,1743885070955,-463.96499185,0.0005,120]
[357197486,1743885070965,-212.97540509,0.0005,120]
[357197487,1743885070975,-500.0,0.0005,30]
[357197488,1743885070984,-444.12134352,0.0005,120]
[357197489,1743885070994,-1383.40612775,0.0005,120]
[357197490,1743885071003,-300.0,0.0005,7]
[357197491,1743885071012,-1000.0,0.0005,20]
[357197492,1743885071022,-209.0,0.0005,120]
[357197493,1743885071032,-9019.79802785,0.0005,120]
[357197494,1743885071041,-189.80698299,0.0005,16]
[357197495,1743885071051,-500.0,0.0005,120]
[357197496,1743885071060,-500.0,0.0005,120]
[357197497,1743885071070,-500.0,0.0005,120]
[357197498,1743885071080,-500.0,0.0005,120]
[357197499,1743885071089,-500.0,0.0005,120]
[357197500,1743885071099,-500.0,0.0005,120]
[357197501,1743885071108,-500.0,0.0005,120]
[357197502,1743885071117,-500.0,0.0005,120]
[357197503,1743885071127,-500.0,0.0005,120]
[357197504,1743885071136,-277.8042541,0.0005,120]
[357197505,1743885071146,-162.42,0.0005,48]
[357197506,1743885071155,-162.42,0.0005,48]
[357197507,1743885071165,-162.42,0.0005,48]
[357197508,1743885071174,-162.42,0.0005,48]
[357197509,1743885071184,-162.42,0.0005,48]
[357197510,1743885071193,-162.42,0.0005,48]
[357197511,1743885071204,-162.42,0.0005,48]
[357197512,1743885071214,-162.42,0.0005,48]
[357197513,1743885071223,-162.42,0.0005,48]
[357197514,1743885071232,-162.42,0.0005,48]
[357197515,1743885071242,-162.42,0.0005,48]
[357197516,1743885071251,-162.42,0.0005,48]
[357197517,1743885071260,-162.42,0.0005,48]
[357197518,1743885071270,-162.42,0.0005,48]
[357197519,1743885071279,-162.42,0.0005,48]
[357197520,1743885071288,-162.42,0.0005,48]
[357197521,1743885071297,-162.42,0.0005,48]
[357197522,1743885071307,-162.42,0.0005,48]
[357197523,1743885071316,-162.42,0.0005,48]
[357197524,1743885071325,-162.42,0.0005,48]
[357197525,1743885071335,-162.42,0.0005,48]
[357197526,1743885071344,-162.42,0.0005,48]
[357197527,1743885071354,-162.42,0.0005,48]
[357197528,1743885071364,-162.42,0.0005,48]
[357197529,1743885071374,-214.26158369,0.0005,30]
[357197530,1743885071383,-262.47565408,0.0005,30]
[357197531,1743885071393,-182.53705782,0.0005,30]
[357197532,1743885071403,-452.25,0.00050036,2]
[357197533,1743885071412,-337.56,0.00050036,2]
[357197534,1743885071422,-6350.96,0.00050041,60]
[357197535,1743885071431,-6350.96,0.00050041,60]
[357197536,1743885071441,-1000.0,0.00050099,120]
[357197537,1743885071451,-1000000.0,0.000501,120]
[357197538,1743885071462,-25074.48211119,0.000501,30]
[357197539,1743885071471,-1571.03517536,0.00050117,16]
[357197540,1743885071481,-223.9669424,0.00050136,16]
[357197541,1743885071490,-1000.0,0.00050137,20]
[357197542,1743885071501,-1000.0,0.00050137,20]
[357197543,1743885071511,-1000.0,0.00050137,20]
[357197544,1743885071521,-517.60924191,0.0005017,60]
[357197545,1743885071530,-150.0,0.00050177,3]
[357197546,1743885071540,-1000000.0,0.000502,120]
[357197547,1743885071550,-561000.0,0.0005025,120]
[357197548,1743885071560,-1000.0,0.00050274,20]
[357197549,1743885071569,-1000.0,0.00050274,20]
[357197550,1743885071579,-1000000.0,0.000503,120]
[357197551,1743885071589,-1000000.0,0.000503,120]
[357197552,1743885071598,-1000.0,0.000503,120]
[357197553,1743885071608,-1000.0,0.000503,120]
[357197554,1743885071617,-700.392,0.00050307,89]
[357197555,1743885071627,-6350.96,0.00050315,60]
[357197556,1743885071636,-6350.96,0.00050315,60]
[357197557,1743885071646,-1000000.0,0.000504,120]
[357197558,1743885071656,-152.0,0.00050406,15]
[357197559,1743885071669,-1000.0,0.00050411,20]
[357197560,1743885071679,-1000.0,0.00050411,20]
[357197561,1743885071689,-3000.0,0.0005044,35]
[357197562,1743885071699,-43879.91,0.000505,120]
[357197563,1743885071711,-1000000.0,0.000505,120]
[357197564,1743885071721,-1000000.0,0.000505,120]
[357197565,1743885071731,-34180.85,0.000505,120]
[357197566,1743885071743,-158.28837484,0.000505,30]
[357197567,1743885071753,-1000.0,0.00050548,20]
[357197568,1743885071763,-1000.0,0.00050548,20]
[357197569,1743885071773,-6350.96,0.00050589,60]
[357197570,1743885071782,-6350.96,0.00050589,60]
[357197571,1743885071792,-1000000.0,0.000506,120]
[357197572,1743885071802,-150.0,0.00050613,120]
[357197573,1743885071811,-1000.0,0.00050685,20]
[357197574,1743885071821,-1000.0,0.00050685,20]
[357197575,1743885071831,-1000000.0,0.000507,120]
[357197576,1743885071842,-500.0,0.00050725,60]
[357197577,1743885071852,-3000.0,0.0005078,35]
[357197578,1743885071861,-1000000.0,0.000508,120]
[357197579,1743885071872,-25074.48211119,0.000508,30]
[357197580,1743885071882,-1000.0,0.00050822,20]
[357197581,1743885071891,-1000.0,0.00050822,20]
[357197582,1743885071901,-6350.96,0.00050863,60]
[357197583,1743885071911,-6350.96,0.00050863,60]
[357197584,1743885071922,-702.50064686,0.00050896,21]
[357197585,1743885071931,-1000000.0,0.000509,120]
[357197586,1743885071941,-150.0,0.000509,120]
[357197587,1743885071951,-1050.0,0.000509,18]
[357197588,1743885071961,-2970.450318,0.000509,120]
[357197589,1743885071971,-1000.0,0.00050959,20]
[357197590,1743885071980,-3000.0,0.0005097,35]
[357197591,1743885071990,-3000.0,0.0005099,35]
[357197592,1743885072000,-50000.0,0.00051,51]
[357197593,1743885072010,-1000000.0,0.00051,120]
[357197594,1743885072021,-900.0,0.00051,52]
[357197595,1743885072030,-384.4622718,0.00051,60]
[357197596,1743885072039,-2160.68745173,0.00051,60]
[357197597,1743885072049,-2226.00965741,0.00051,120]
[357197598,1743885072059,-1050.0,0.00051,2]
[357197599,1743885072069,-1000000.0,0.000511,120]
[357197600,1743885072078,-878598.88,0.0005112,120]
[357197601,1743885072089,-250.26880756,0.0005112,30]
[357197602,1743885072098,-6350.96,0.00051137,60]
[357197603,1743885072111,-6350.96,0.00051137,60]
[357197604,1743885072121,-188.09936792,0.00051199,120]
[357197605,1743885072131,-1000000.0,0.000512,120]
[357197606,1743885072142,-2000.0,0.000512,2]
[357197607,1743885072152,-1000000.0,0.0005125,120]
[357197608,1743885072163,-1000000.0,0.000513,120]
[357197609,1743885072173,-1096.90365282,0.000513,90]
[357197610,1743885072183,-8717.01103068,0.000513,90]
[357197611,1743885072193,-5191.20504008,0.00051317,21]
[357197612,1743885072205,-500.0,0.00051339,60]
[357197613,1743885072215,-500.0,0.00051351,60]
[357197614,1743885072226,-1072.05,0.00051359,2]
[357197615,1743885072236,-1000000.0,0.000514,120]
[357197616,1743885072247,-6350.96,0.00051411,60]
[357197617,1743885072257,-6350.96,0.00051411,60]
[357197618,1743885072267,-1066.0,0.00051487,30]
[357197619,1743885072278,-300.0,0.000515,120]
[357197620,1743885072287,-1000000.0,0.000515,120]
[357197621,1743885072297,-1000000.0,0.000515,120]
[357197622,1743885072307,-727.0,0.000515,90]
[357197623,1743885072318,-25074.48211119,0.000515,30]
[357197624,1743885072329,-150.0,0.0005155,120]
[357197625,1743885072339,-1000000.0,0.000516,120]
[357197626,1743885072492,-6350.96,0.00051685,60]
[357197627,1743885072502,-6350.96,0.00051685,60]
[357197628,1743885072512,-998513.86273331,0.000517,120]
[357197629,1743885072620,-435.15,0.000517,120]
[357197630,1743885072631,-832.98205305,0.000517,120]
[357197631,1743885072643,-218.00521364,0.000517,120]
[357197632,1743885072653,-152.0,0.00051716,16]
[357197633,1743885072668,-260.63,0.00051719,2]
[357197634,1743885072677,-695.31671395,0.0005175,120]
[357197635,1743885072689,-494.37099225,0.0005175,120]
[357197636,1743885072700,-18852.11818387,0.0005175,120]
[357197637,1743885128693,-221.23742989,0.000199,2]
[357197640,1743885325500,168.06,0.00013699,2]
[357197641,1743885325935,-160.52535,0.0002189,2]
[357197645,1743885974884,-176.46,0.00019,2]
[357197665,1743886099391,-150.0,0.00018905,2]
[357197676,1743886231457,-73.54,0.00019,2]
[357197677,1743886231468,-300.0,0.00021,2]
[357197678,1743886231477,-160.52535,0.00021817,2]
[357197679,1743886231487,-89.47465,0.0002189,2]
[357197680,1743886231497,-150.0,0.00021917,2]
[357197681,1743886231508,-350.0,0.00023,2]
[357197682,1743886231517,-150.0,0.00023287,2]
[357197683,1743886231527,-400.0,0.00025,2]
[357197684,1743886231536,-97.91420964,0.00025,2]
[357197685,1743886231547,-85.61944264,0.00025,2]
[357197686,1743886231557,-200.0,0.000251,2]
[357197687,1743886231566,-250.0,0.00025214,2]
[357197688,1743886231575,-183.53365227,0.00026749,2]
[357197689,1743886231585,-339.18,0.00026849,2]
[357197690,1743886231595,-450.0,0.00027,2]
[357197691,1743886231605,-200.0,0.000271,2]
[357197692,1743886231615,-200.0,0.000281,2]
[357197693,1743886231624,-500.0,0.00029,2]
[357197694,1743886231634,-163.0,0.00029014,2]
[357197695,1743886231643,-200.0,0.000291,2]
[357197696,1743886231653,-300.0,0.00029814,2]
[357197697,1743886231662,-3289.3190566,0.00029815,10]
[357197698,1743886231674,-21274.4809434,0.00029815,10]
[357197699,1743886231684,-295.18,0.00029815,2]
[357197700,1743886231693,-499.99,0.00029815,2]
[357197701,1743886231703,-150.99,0.00029815,2]
[357197702,1743886231713,-9999.99,0.00029815,2]
[357197703,1743886231722,-650.61,0.00029815,2]
[357197704,1743886231733,-1195.46,0.00029815,2]
[357197705,1743886231742,-999.99,0.00029815,2]
[357197706,1743886231752,-8838.34,0.00029815,2]
[357197707,1743886231761,-200.0,0.000301,2]
[357197708,1743886231771,-215.74,0.00031,2]
[357197709,1743886231781,-550.0,0.00031,2]
[357197710,1743886231791,-420.0,0.00032139,2]
[357197711,1743886231801,-339.18,0.00032646,2]
[357197712,1743886231811,-600.0,0.00032827,2]
[357197713,1743886231820,-574.0,0.00032828,2]
[357197714,1743886231829,-2042.0,0.00032828,2]
[357197715,1743886231838,-1435.0,0.00032828,2]
[357197716,1743886231847,-1276.0,0.00032828,2]
[357197717,1743886231856,-909.0,0.00032828,2]
[357197718,1743886231866,-790.0,0.00032828,2]
[357197719,1743886231875,-543.0,0.00032828,2]
[357197720,1743886231885,-57.65690271,0.00032828,2]
[357197721,1743886231901,-793.34309729,0.00032828,2]
[357197723,1743886231911,-600.0,0.00033,2]
[357197725,1743886231920,-420.235,0.00033549,36]
[357197726,1743886231930,-299.70476586,0.00035,2]
[357197727,1743886231942,-350.29523414,0.00035,2]
[357197728,1743886231952,-407.59476636,0.00035828,2]
[357197729,1743886231963,-774.34181465,0.00035828,2]
[357197730,1743886231975,-662.02854974,0.00035828,2]
[357197731,1743886231987,-198.03486925,0.00035828,2]
[357197732,1743886231996,-326.014,0.00035828,2]
[357197733,1743886232006,-153.27,0.00036,31]
[357197735,1743886232015,-153.27,0.00036,31]
[357197737,1743886232024,-570.1135444,0.0003602,4]
[357197738,1743886232034,-241.12,0.000361,2]
[357197740,1743886232044,-500.0,0.00036349,7]
[357197742,1743886232053,-500.0,0.000368,7]
[357197744,1743886232063,-151.11,0.00037,2]
[357197746,1743886232073,-700.0,0.00037,2]
[357197748,1743886232082,-500.0,0.00037489,7]
[357197750,1743886232091,-339.18,0.00038443,2]
[357197752,1743886232101,-2038.0,0.00038828,2]
[357197753,1743886232111,-200.0,0.00038983,2]
[357197756,1743886232125,-750.0,0.00039,2]
[357197758,1743886232135,-723.36,0.000392,7]
[357197760,1743886232145,-156.37,0.00039203,2]
[357197761,1743886232154,-2652.12356191,0.00039252,2]
[357197769,1743886232237,-257.9999999,0.00039252,2]
[357197770,1743886232252,-276.85643819,0.00039252,2]
[357197771,1743886232262,-500.0,0.00039319,5]
[357197772,1743886232275,-250.0,0.00039391,2]
[357197773,1743886232284,-214.40852088,0.00039781,7]
[357197774,1743886232296,-285.59147912,0.00039781,7]
[357197775,1743886232306,-170.59,0.00039828,120]
[357197776,1743886232316,-198.64,0.00040374,2]
[357197777,1743886232325,-420.86360139,0.00040377,5]
[357197778,1743886232336,-79.13639861,0.00040377,5]
[357197779,1743886232345,-200.0,0.0004043,2]
[357197780,1743886232358,-150.0,0.00040492,2]
[357197781,1743886232368,-3407.5,0.00040498,2]
[357197782,1743886232377,-153.27,0.000406,31]
[357197784,1743886232386,-153.27,0.000406,31]
[357197785,1743886232396,-153.27,0.000406,31]
[357197787,1743886232405,-153.27,0.000406,31]
[357197789,1743886232415,-161.0,0.00041,14]
[357197791,1743886232424,-800.0,0.00041,2]
[357197793,1743886232433,-165.1,0.00041124,2]
[357197795,1743886232442,-500.0,0.00041865,120]
[357197797,1743886232451,-500.0,0.00041865,120]
[357197799,1743886232460,-500.0,0.00041865,120]
[357197818,1743886232633,-500.0,0.00041865,120]
[357197819,1743886232646,-500.0,0.00041865,120]
[357197820,1743886232656,-529.0,0.00041865,120]
[357197821,1743886232665,-500.0,0.00041865,120]
[357197822,1743886232674,-500.0,0.00041865,120]
[357197823,1743886232683,-500.0,0.00041865,120]
[357197824,1743886232692,-500.0,0.00041865,120]
[357197825,1743886232702,-500.0,0.00041865,120]
[357197826,1743886232715,-500.0,0.00041865,120]
[357197827,1743886232724,-500.0,0.00041865,120]
[357197828,1743886232734,-500.0,0.00041865,120]
[357197829,1743886232743,-500.0,0.00041865,120]
[357197830,1743886232753,-500.0,0.00041865,120]
[357197831,1743886232762,-500.0,0.00041865,120]
[357197832,1743886232772,-500.0,0.00041865,120]
[357197833,1743886232781,-500.0,0.00041865,120]
[357197834,1743886232791,-500.0,0.00041865,120]
[357197835,1743886232800,-500.0,0.00041865,120]
[357197836,1743886232809,-500.0,0.00041865,120]
[357197837,1743886232819,-500.0,0.00041865,120]
[357197838,1743886232828,-500.0,0.00041865,120]
[357197839,1743886232838,-500.0,0.00041865,120]
[357197840,1743886232847,-500.0,0.00041865,120]
[357197841,1743886232856,-500.0,0.00041865,120]
[357197842,1743886232866,-500.0,0.00041865,120]
[357197843,1743886232875,-500.0,0.00041865,120]
[357197844,1743886232884,-500.0,0.00041865,120]
[357197845,1743886232894,-500.0,0.00041865,120]
[357197846,1743886232905,-500.0,0.00041865,120]
[357197847,1743886232915,-500.0,0.00041865,120]
[357197848,1743886232925,-500.0,0.00041865,120]
[357197849,1743886232935,-500.0,0.00041865,120]
[357197850,1743886232945,-500.0,0.00041865,120]
[357197851,1743886232955,-500.0,0.00041865,120]
[357197852,1743886232964,-147.42961155,0.00041865,120]
[357197853,1743886232977,-352.57038845,0.00041865,120]
[357197854,1743886232986,-500.0,0.00041865,120]
[357197855,1743886232996,-500.0,0.00041865,120]
[357197856,1743886233005,-500.0,0.00041865,120]
[357197857,1743886233015,-500.0,0.00041865,120]
[357197858,1743886233026,-500.0,0.00041865,120]
[357197859,1743886233036,-500.0,0.00041865,120]
[357197860,1743886233046,-568.0,0.00041865,120]
[357197861,1743886233056,-153.7,0.00042379,2]
[357197862,1743886233066,-150.0,0.00042656,2]
[357197863,1743886233076,-500.0,0.0004285,30]
[357197864,1743886233086,-530.14,0.00042866,2]
[357197865,1743886233097,-210.37318053,0.00043,2]
[357197866,1743886233109,-639.62681947,0.00043,2]
[357197867,1743886233119,-444.9,0.00043704,30]
[357197868,1743886233129,-150.0,0.00043796,2]
[357197869,1743886233143,-150.0,0.00043999,7]
[357197870,1743886233154,-3531.17,0.00043999,2]
[357197871,1743886233164,-339.18,0.00044239,2]
[357197872,1743886233174,-976.66106828,0.00044682,30]
[357197873,1743886233184,-1000.0,0.00044798,10]
[357197874,1743886233194,-150.0,0.00044935,2]
[357197875,1743886233204,-900.0,0.00045,2]
[357197876,1743886233215,-870.28519132,0.00045162,2]
[357197877,1743886233228,-129.71480868,0.00045162,2]
[357197878,1743886233238,-153.27,0.000453,39]
[357197879,1743886233248,-153.27,0.000453,39]
[357197880,1743886233258,-153.27,0.000453,39]
[357197881,1743886233270,-153.27,0.000453,39]
[357197882,1743886233281,-150.0,0.00046075,2]
[357197883,1743886233291,-1425.11389582,0.00046182,2]
[357197884,1743886233303,-9013.68319414,0.00046182,2]
[357197887,1743886237409,-1111.47534651,0.000458,2]
[357197888,1743886237419,-1202.8544636,0.00046182,2]
[357197889,1743886237431,-435.00512371,0.00046182,2]
[357197890,1743886237471,-11823.34332273,0.00046182,2]
[357197891,1743886237481,-711.85,0.00046212,2]
[357197892,1743886237491,-811.60789583,0.00046448,30]
[357197893,1743886237501,-166.68,0.00046517,2]
[357197894,1743886237511,-950.0,0.00047,2]
[357197895,1743886237520,-150.0,0.00047214,2]
[357197896,1743886237530,-1384.1299,0.00048253,2]
[357197897,1743886237539,-1413.4103,0.00048253,2]
[357197898,1743886237549,-150.0,0.00048354,2]
[357197899,1743886237559,-1811.47858144,0.000485,2]
[357197900,1743886237571,-188.52141856,0.000485,2]
[357197901,1743886237580,-196.20691585,0.00049,2]
[357197902,1743886237592,-803.79308415,0.00049,2]
[357197903,1743886237602,-171.55554644,0.00049073,15]
[357197904,1743886237612,-182.1602,0.00049173,2]
[357197905,1743886237622,-153.0,0.00049315,90]
[357197906,1743886237632,-150.0,0.00049493,120]
[357197907,1743886237642,-602.8,0.000496,14]
[357197908,1743886237652,-153.27,0.0005,48]
[357197909,1743886237661,-153.27,0.0005,48]
[357197910,1743886237670,-153.27,0.0005,48]
[357197911,1743886237680,-153.27,0.0005,48]
[357197912,1743886237690,-339.18,0.00050036,2]
[357197913,1743886237700,-500.0,0.00050139,60]
[357197914,1743886237709,-277.50411257,0.0005039,28]
[357197916,1743886237719,-546.19626935,0.0005039,22]
[357197918,1743886237728,-2500.0,0.0005039,2]
[357197919,1743886237737,-1000.0,0.000504,2]
[357197921,1743886237747,-907.08095742,0.000504,120]
[357197923,1743886237758,-1771.25319966,0.000504,120]
[357197925,1743886237770,-535.64964,0.000504,120]
[357197927,1743886237781,-1786.01620292,0.000504,120]
[357197929,1743886237791,-2613.98379708,0.000504,2]
[357197931,1743886237802,-424.072634,0.000504,2]
[357197933,1743886237814,-162.73216892,0.000504,2]
[357197934,1743886237824,-150.12216249,0.00050467,27]
[357197935,1743886237833,-2274.57369859,0.00050467,15]
[357197936,1743886237845,-2472.47165091,0.00050467,15]
[357197937,1743886237855,-151.29,0.0005048,120]
[357197938,1743886237864,-1818.63834913,0.0005049,4]
[357197939,1743886237875,-748.8159505,0.0005049,4]
[357197940,1743886239614,-269.75429189,0.0005049,4]
[357197941,1743886239626,-2371.28172866,0.0005049,4]
[357197942,1743886239722,-35487.80000082,0.0005049,4]
[357197943,1743886239832,-150.0,0.00050467,27]
[357197944,1743886239841,-1007.65390319,0.0005049,4]
[357197945,1743886239889,-271459.37311881,0.0005049,4]
[357197946,1743886239899,-237247.662693,0.0005049,4]
[357197947,1743886239910,-219.1418345,0.0005049,7]
[357197948,1743886239919,-236.89129966,0.00050493,30]
[357197949,1743886239929,-150.0,0.00050499,3]
[357197950,1743886239939,-150.0,0.00050499,3]
[357197951,1743886239948,-1771561.6,0.000505,120]
[357197952,1743886239958,-1587.74,0.00050567,60]
[357197953,1743886239968,-1587.74,0.00050567,60]
[357197954,1743886239978,-1587.74,0.00050567,60]
[357197955,1743886239988,-1587.74,0.00050567,60]
[357197956,1743886239998,-4747.04534943,0.00050615,15]
[357197957,1743886240007,-150.0,0.00050632,120]
[357197958,1743886240017,-726.46964,0.000507,30]
[357197959,1743886240026,-1118.59585037,0.00050715,30]
[357197960,1743886240036,-1599.37272823,0.00050715,30]
[357197961,1743886240045,-2869.1363,0.00050741,2]
[357197962,1743886240055,-762.50584315,0.00050746,60]
[357197963,1743886240064,-251.7355,0.00050748,21]
[357197964,1743886240074,-4747.04534943,0.00050763,15]
[357197965,1743886240086,-1000.0,0.00050807,120]
[357197966,1743886240096,-1511.3098,0.00050841,2]
[357197967,1743886240105,-15081.3734,0.00050841,2]
[357197968,1743886240115,-1587.74,0.00050841,60]
[357197969,1743886240127,-1587.74,0.00050841,60]
[357197970,1743886240136,-4747.04534943,0.00050911,15]
[357197971,1743886240146,-1050.0,0.00051,2]
[357197972,1743886240156,-4747.04534943,0.00051059,15]
[357197973,1743886240165,-1587.74,0.00051115,60]
[357197974,1743886240175,-1587.74,0.00051115,60]
[357197975,1743886240184,-150.12216248,0.00051184,28]
[357197976,1743886240193,-2000.0,0.000512,2]
[357197977,1743886240203,-4747.04534943,0.00051208,15]
[357197978,1743886240212,-4747.04534943,0.00051356,15]
[357197980,1743886240221,-1587.74,0.00051389,60]
[357197981,1743886240231,-1587.74,0.00051389,60]
[357197982,1743886240240,-2000.0,0.0005146,3]
[357197983,1743886240250,-11600.42583927,0.000515,120]
[357197984,1743886240260,-4747.04534943,0.00051504,15]
[357197985,1743886240270,-465.2921,0.0005155,2]
[357197986,1743886240281,-493.142,0.0005155,2]
[357197987,1743886240291,-7020.5807,0.0005164,2]
[357197988,1743886240301,-10533.20898338,0.0005165,2]
[357197989,1743886240311,-1005.9127,0.0005165,2]
[357197990,1743886240320,-520.0765,0.0005165,2]
[357197991,1743886240330,-500.0,0.0005165,2]
[357197992,1743886240338,-36024.8673,0.0005165,2]
[357197993,1743886240347,-66302.2964,0.0005165,2]
[357197994,1743886240359,-1000.0,0.0005165,2]
[357197995,1743886240369,-4747.04534943,0.00051652,15]
[357197996,1743886240379,-1587.74,0.00051663,60]
[357197997,1743886240388,-1587.74,0.00051663,60]
[357197998,1743886240397,-230.32,0.00051673,10]
[357197999,1743886240407,-6692.78,0.0005169,10]
[357198000,1743886240416,-150.0,0.00051749,3]
[357198001,1743886240427,-150.0,0.00051749,3]
[357198002,1743886240438,-2449.0,0.0005175,7]
[357198003,1743886240447,-593853.41518703,0.0005175,120]
[357198004,1743886240463,-150.0,0.0005049,4]
[357198005,1743886240472,-305111.42456337,0.0005175,120]
[357198020,1743886242613,-23900.0,0.00049716,2]
[357198021,1743886242623,-42757.64910273,0.0005175,120]
[357198022,1743886242639,-25186.3396482,0.0005175,120]
[357198026,1743886243502,-292.6089698,0.0005175,120]
[357198027,1743886243514,-12756.7566388,0.0005175,120]
[357198028,1743886243523,-806.98506782,0.0005175,30]
[357198029,1743886243532,-150.0,0.00051772,120]
[357198030,1743886243542,-10533.20898338,0.00051775,2]
[357198031,1743886243551,-151.29,0.0005179,120]
[357198032,1743886243560,-150.0,0.00051799,3]
[357198033,1743886243569,-150.0,0.00051799,3]
[357198034,1743886243578,-409362.85760886,0.000518,120]
[357198035,1743886243598,-150.0,0.00050615,15]
[357198036,1743886243607,-137044.59346535,0.000518,120]
[357198037,1743886243618,-23230.66904352,0.000518,120]
[357198038,1743886243629,-398.32965701,0.000518,120]
[357198039,1743886243640,-475.4551127,0.000518,120]
[357198040,1743886243653,-10025.0000001,0.000518,120]
[357198041,1743886243666,-3734.89111475,0.000518,120]
[357198042,1743886243677,-11024.22302619,0.000518,120]
[357198045,1743886245579,-444.318875,0.00029715,2]
[357198046,1743886245590,-534.45907209,0.00029715,2]
[357198047,1743886245635,-3171.46576798,0.00029715,2]
[357198048,1743886245745,-1491.40448493,0.00029715,2]
[357198049,1743886245754,-150.0,0.00050979,7]
[357198050,1743886245763,-1933.0,0.000518,7]
[357198051,1743886245773,-404703.98097152,0.000518,120]
[357198052,1743886245782,-536.54,0.000518,14]
[357198053,1743886245792,-4747.04534943,0.000518,15]
[357198054,1743886245802,-150.0,0.00051899,3]
[357198055,1743886245811,-150.0,0.00051899,3]
[357198056,1743886245820,-373637.40838156,0.000519,120]
[357198057,1743886245831,-579008.80577373,0.000519,120]
[357198058,1743886245854,-150.0,0.00050748,21]
[357198059,1743886245863,-683.22995367,0.0005165,2]
[357198060,1743886245872,-8403.26746328,0.000519,120]
[357198061,1743886245884,-2001.74960517,0.000519,120]
[357198067,1743886459578,161.69,0.00013699,2]
[357198105,1743887431605,-171.807,0.00032834,2]
[357198106,1743887431615,-202.23386427,0.00036,2]
[357198107,1743887431625,-150.0,0.000361,2]
[357198108,1743887431635,-336.188,0.000361,44]
[357198109,1743887431643,-489.85921571,0.0003813,2]
[357198110,1743887431655,-78.46060529,0.0003813,2]
[357198111,1743887431665,-249.45776247,0.00038322,2]
[357198112,1743887431674,-171.36272092,0.00038322,2]
[357198113,1743887431684,-202.23386427,0.00038331,2]